bitfinex-derivatives/quotes_SOLF0:USTF0_20240924
["timestamp","ask_amount","ask_price","bid_price","bid_amount"]
[1727174467485,12.8242,146.89,146.84,9.42]
[1727174467684,12.8242,146.89,146.85,9.42]
[1727174468292,12.8242,146.89,146.86,3.4046]
[1727174469591,12.8242,146.89,146.87,3.4045]
[1727174469990,3.4039,146.9,146.87,3.4045]
[1727174470689,3.4038,146.9,146.87,3.4045]
[1727174471394,3.4037,146.91,146.88,3.4042]
[1727174471786,9.42,146.89,146.77,6.8133]
[1727174471993,9.42,146.88,146.77,6.8133]
[1727174472199,9.42,146.88,146.83,9.42]
[1727174472399,12.8244,146.88,146.85,3.4048]
[1727174474102,3.4039,146.9,146.87,3.4045]
[1727174475205,2.7801,146.92,146.84,14.71]
[1727174476103,2.7801,146.92,146.77,6.8133]
[1727174476104,3.4043,146.88,146.85,3.4048]
[1727174476700,3.4043,146.88,146.86,3.4047]
[1727174477501,3.4041,146.89,146.86,3.4047]
[1727174477705,2.7801,146.92,146.84,14.71]
[1727174478008,3.4039,146.9,146.84,14.71]
[1727174478197,3.4039,146.9,146.87,3.4044]
[1727174480906,3.4037,146.91,146.86,14.71]
[1727174481113,1.4013,146.92,146.86,14.71]
[1727174481601,4.8047,146.92,146.89,3.4039]
[1727174481798,1.4013,146.92,146.89,3.4039]
[1727174482195,1.4013,146.92,146.9,3.4037]
[1727174483306,1.4013,146.92,146.89,3.4039]
[1727174483604,4.8047,146.92,146.89,3.4039]
[1727174485296,79.82971103,146.93,146.82,3.46447305]
[1727174485297,1.3096,146.95,146.88,14.71]
[1727174485505,1.3096,146.95,146.9,14.71]
[1727174485909,4.7123,146.95,146.91,3.4035]
[1727174487517,1.34,146.99,146.9,14.71]
[1727174487811,1.34,146.99,146.87,3.36409659]
[1727174487812,1.34,146.99,146.91,14.71]
[1727174488005,3.34388219,146.98,146.91,14.71]
[1727174488210,3.4026,146.95,146.9,14.71]
[1727174488909,3.4026,146.95,146.92,3.4033]
[1727174496418,3.4026,146.95,146.92,12.8233]
[1727174497717,3.4025,146.96,146.94,9.42]
[1727174499619,3.4027,146.95,146.93,9.42]
[1727174501214,9.42,146.94,146.84,88.5103]
[1727174501427,9.42,146.94,146.89,9.42]
[1727174502026,9.42,146.93,146.84,85.02890704]
[1727174502228,9.42,146.93,146.88,9.42]
[1727174502420,9.42,146.93,146.84,85.02890704]
[1727174502714,1.3286,146.95,146.85,9.42]
[1727174502715,9.42,146.9,146.85,9.42]
[1727174502921,3.4044,146.88,146.85,12.8249]
[1727174503118,9.42,146.9,146.85,9.42]
[1727174503320,9.42,146.91,146.86,9.42]
[1727174503723,3.4042,146.89,146.86,12.8246]
[1727174507129,3.4042,146.89,146.87,9.42]
[1727174507930,1.3824,146.92,146.88,9.42]
[1727174508222,1.3824,146.92,146.9,9.42]
[1727174508417,4.7858,146.92,146.9,9.42]
[1727174510119,3.4036,146.91,146.9,9.42]
[1727174510728,3.4038,146.9,146.88,9.42]
[1727174513728,3.404,146.89,146.88,9.42]
[1727174514621,3.404,146.89,146.87,9.42]
[1727174515529,3.4039,146.9,146.88,9.42]
[1727174517133,3.4037,146.91,146.88,12.8241]
[1727174517431,1.3824,146.92,146.88,12.8241]
[1727174518928,3.4038,146.9,146.88,12.8241]
[1727174520232,3.404,146.89,146.87,9.42]
[1727174520728,3.404,146.89,146.88,9.42]
[1727174521737,3.4036,146.91,146.88,9.42]
[1727174522239,3.4036,146.91,146.88,12.8242]
[1727174522428,3.4036,146.91,146.89,9.42]
[1727174522833,3.4038,146.9,146.89,9.42]
[1727174523337,3.4037,146.91,146.89,9.42]
[1727174523534,1.3286,146.95,146.9,12.8238]
[1727174523735,1.3286,146.95,146.92,9.42]
[1727174524237,3.4029,146.94,146.92,9.42]
[1727174524634,3.4031,146.93,146.92,9.42]
[1727174524830,1.4115,146.96,146.92,9.42]
[1727174525034,3.4025,146.96,146.93,9.42]
[1727174525836,3.4027,146.95,146.93,9.42]
[1727174526036,1.3808,146.97,146.94,9.42]
[1727174526739,10.7557,147.01,146.95,9.42]
[1727174526936,3.32799176,147.0,146.95,9.42]
[1727174527231,3.4023,146.97,146.95,9.42]
[1727174528235,3.4024,146.96,146.93,9.42]
[1727174529045,3.4024,146.96,146.94,9.42]
[1727174529246,3.4023,146.97,146.95,9.42]
[1727174529546,3.32799176,147.0,146.95,9.42]
[1727174529744,2.681,147.01,146.95,9.42]
[1727174529745,12.101,147.01,146.97,9.42]
[1727174529946,2.681,147.01,146.97,9.42]
[1727174530145,12.101,147.01,146.97,9.42]
[1727174530648,3.4019,146.98,146.97,9.42]
[1727174539854,2.681,147.01,146.97,9.42]
[1727174540157,2.681,147.01,146.99,9.42]
[1727174540763,3.4016,147.0,146.98,9.42]
[1727174540952,2.681,147.01,146.98,9.42]
[1727174541153,12.101,147.01,146.97,9.42]
[1727174541470,3.4019,146.99,146.97,9.42]
[1727174541847,3.4019,146.98,146.97,9.42]
[1727174542049,3.4019,146.98,146.96,9.42]
[1727174543152,3.4019,146.98,146.97,9.42]
[1727174544358,9.42,146.99,146.88,91.83117161]
[1727174544551,9.42,146.98,146.94,9.42]
[1727174544752,9.42,147.0,146.94,9.42]
[1727174544948,3.4023,146.97,146.94,12.8228]
[1727174545157,3.4023,146.97,146.96,9.42]
[1727174546861,3.4023,146.97,146.94,12.8229]
[1727174547056,3.4026,146.96,146.94,9.42]
[1727174550555,3.4026,146.96,146.95,9.42]
[1727174553465,3.4026,146.96,146.94,3.4027]
[1727174553762,3.4026,146.96,146.95,9.42]
[1727174555159,9.42,147.0,146.95,9.42]
[1727174555357,3.4023,146.97,146.95,9.42]
[1727174557964,3.4023,146.97,146.94,3.4027]
[1727174558164,3.4023,146.97,146.96,9.42]
[1727174559065,2.681,147.01,146.96,9.42]
[1727174559267,2.681,147.01,146.98,9.42]
[1727174559462,3.4015,147.0,146.98,9.42]
[1727174560662,3.4017,146.99,146.98,9.42]
[1727174562169,6.7981,147.11,146.98,9.42]
[1727174562401,9.42,147.06,147.0,9.42]
[1727174562670,4.0507,147.09,146.9,6.8073]
[1727174562671,9.42,147.05,146.9,6.8073]
[1727174562871,6.11184078,147.04,146.99,9.42]
[1727174563969,15.53184078,147.04,146.99,9.42]
[1727174564571,2.7295,147.04,147.01,12.8211]
[1727174565073,2.7295,147.04,147.01,9.42]
[1727174565279,6.1302,147.04,147.01,9.42]
[1727174565470,6.1302,147.04,146.97,3.34240794]
[1727174565471,2.7295,147.04,146.97,3.34240794]
[1727174565671,2.7295,147.04,147.01,9.42]
[1727174566776,3.4009,147.03,147.01,9.42]
[1727174569975,12.1495,147.04,146.99,12.8216]
[1727174571175,3.4012,147.02,146.99,12.8216]
[1727174572487,3.4012,147.02,147.01,9.42]
[1727174575980,3.4012,147.02,146.99,12.8216]
[1727174577370,3.4012,147.02,147.0,12.8215]
[1727174578276,3.4012,147.02,147.0,9.42]
[1727174579685,3.4012,147.02,147.0,12.8215]
[1727174583985,3.4012,147.02,146.92,81.66]
[1727174583986,3.4012,147.01,146.99,12.8217]
[1727174585684,3.4012,147.01,147.0,9.42]
[1727174586077,3.4012,147.02,147.0,12.8215]
[1727174586989,3.4009,147.03,147.01,12.8212]
[1727174590393,3.4009,147.03,147.01,9.42]
[1727174594505,2.7295,147.04,147.02,3.401]
[1727174595002,2.7295,147.04,147.01,9.42]
[1727174595206,6.1302,147.04,147.01,12.8212]
[1727174597805,3.4003,147.06,147.03,3.4007]
[1727174598112,2.7181,147.08,147.05,9.42]
[1727174598808,3.4,147.07,147.05,9.42]
[1727174599010,3.4,147.07,147.06,9.42]
[1727174599218,79.72022884,147.11,147.06,9.42]
[1727174599404,79.72022884,147.11,147.07,9.42]
[1727174599606,83.20431207,147.11,147.07,9.42]
[1727174599913,3.3993,147.1,147.07,12.8197]
[1727174602406,3.3988,147.12,147.09,9.42]
[1727174602605,4.2074,147.14,146.99,4.65748109]
[1727174602606,2.8166,147.14,147.11,9.42]
[1727174602806,1.4172,147.14,147.12,9.42]
[1727174603114,1.4172,147.14,147.01,88.4424]
[1727174603115,4.8156,147.14,147.11,9.42]
[1727174603411,1.4172,147.14,147.11,9.42]
[1727174603609,3.3986,147.13,147.11,9.42]
[1727174606911,3.3981,147.15,147.12,9.42]
[1727174607111,4.76031307,147.16,147.12,9.42]
[1727174607614,3.3982,147.15,147.13,9.42]
[1727174607913,4.76031307,147.16,147.13,9.42]
[1727174608118,3.398,147.15,147.13,9.42]
[1727174609813,3.3982,147.14,147.12,9.42]
[1727174610013,9.42,147.15,147.03,81.62]
[1727174610221,9.42,147.13,147.03,81.62]
[1727174610416,3.3988,147.12,147.09,3.3993]
[1727174611018,3.3989,147.11,147.08,12.8196]
[1727174614113,3.3989,147.11,147.0,81.62]
[1727174614114,3.3995,147.09,147.0,81.62]
[1727174614325,9.42,147.12,147.07,9.42]
[1727174614519,9.42,147.11,147.0,81.62]
[1727174614822,3.4,147.07,147.05,9.42]
[1727174615619,3.4,147.07,147.06,9.42]
[1727174616221,3.3997,147.08,147.06,9.42]
[1727174618817,3.3999,147.07,147.06,9.42]
[1727174620231,3.3999,147.07,147.05,9.42]
[1727174620833,3.4001,147.06,147.05,9.42]
[1727174621126,3.4001,147.06,147.03,3.4007]
[1727174621127,12.78655554,147.09,147.04,9.42]
[1727174621332,10.81,147.09,147.04,9.42]
[1727174621921,3.38968637,147.08,147.04,9.42]
[1727174622120,3.38968637,147.08,147.02,3.4009]
[1727174622329,12.80968637,147.08,147.03,9.42]
[1727174622526,3.4003,147.06,147.03,9.42]
[1727174623432,3.4003,147.06,147.04,9.42]
[1727174633545,3.3999,147.07,147.05,9.42]
[1727174634040,3.4001,147.06,147.04,9.42]
[1727174634532,10.81,147.09,147.04,9.42]
[1727174634734,3.34376701,147.08,147.04,9.42]
[1727174635339,3.4002,147.06,147.04,9.42]
[1727174647549,1.39,147.09,147.04,9.42]
[1727174647750,1.39,147.09,147.06,9.42]
[1727174648549,3.3999,147.07,147.06,9.42]
[1727174650256,3.3999,147.07,147.04,12.8204]
[1727174658261,3.4001,147.06,147.04,12.8204]
[1727174663061,3.4,147.07,147.04,12.8204]
[1727174663753,3.4,147.07,147.04,3.4004]
[1727174664071,3.4,147.07,147.05,9.42]
[1727174666063,3.4,147.07,147.05,12.8203]
[1727174668056,3.3997,147.08,147.05,12.8203]
[1727174669364,20.47,147.34,147.07,9.42]
[1727174669667,9.42,147.19,147.13,9.42]
[1727174669867,3.3975,147.18,147.13,9.42]
[1727174670262,3.3975,147.18,147.08,81.64]
[1727174670462,4.0931,147.22,147.14,12.8182]
[1727174670463,12.8172,147.19,147.14,12.8182]
[1727174670967,7.4896,147.22,147.17,3.3973]
[1727174671265,9.42,147.2,147.15,9.42]
[1727174671764,12.8171,147.19,147.14,9.42]
[1727174672559,12.8171,147.19,147.14,12.8182]
[1727174673065,3.3973,147.18,147.13,12.8183]
[1727174673767,3.37696103,147.17,147.13,12.8183]
[1727174674365,3.37696103,147.17,147.14,3.3982]
[1727174674767,12.8172,147.19,147.14,12.8182]
[1727174675470,12.8172,147.19,147.15,3.3979]
[1727174675669,3.3969,147.2,147.15,9.42]
[1727174675867,12.8169,147.2,147.15,9.42]
[1727174676062,87.15056799,147.22,147.15,9.42]
[1727174676272,87.15056799,147.22,147.08,6.7991]
[1727174676273,83.75416799,147.22,147.18,9.42]
[1727174676465,4.0931,147.22,147.18,9.42]
[1727174676768,4.0931,147.22,147.19,3.397]
[1727174677165,2.6762,147.22,147.19,3.397]
[1727174677362,2.6762,147.22,147.18,9.42]
[1727174677569,6.0727,147.22,147.18,9.42]
[1727174677771,6.0727,147.22,147.18,12.8172]
[1727174680171,15.4927,147.22,147.18,12.8172]
[1727174683272,15.4927,147.22,147.19,3.397]
[1727174683476,6.0727,147.22,147.19,12.817]
[1727174684675,2.6762,147.22,147.2,3.3968]
[1727174687070,2.6762,147.22,147.19,3.397]
[1727174688174,20.41,147.33,147.19,9.42]
[1727174688374,9.42,147.26,147.21,9.42]
[1727174688576,3.44821047,147.25,147.21,9.42]
[1727174688770,6.84411047,147.25,147.21,12.8165]
[1727174689170,6.84411047,147.25,147.21,3.3965]
[1727174689365,16.26411047,147.25,147.21,12.8165]
[1727174689568,3.396,147.24,147.2,12.8168]
[1727174690074,12.816,147.24,147.2,12.8168]
[1727174690877,9.42,147.23,147.12,88.3574]
[1727174691077,1.4277,147.24,147.19,9.42]
[1727174691271,14.21196046,147.24,147.19,9.42]
[1727174691874,3.3963,147.23,147.2,3.3968]
[1727174694582,3.3965,147.22,147.19,3.397]
[1727174694878,3.3965,147.22,147.19,12.817]
[1727174697078,3.3965,147.22,147.19,9.42]
[1727174697879,3.3967,147.21,147.18,12.8172]
[1727174698680,3.3965,147.22,147.19,9.42]
[1727174699980,3.3967,147.21,147.19,9.42]
[1727174700480,3.3971,147.19,147.1,173.81384618]
[1727174700680,9.42,147.21,147.16,9.42]
[1727174700877,9.42,147.21,147.16,12.8177]
[1727174701082,3.397,147.2,147.16,12.8177]
[1727174701284,3.397,147.2,147.1,173.81384618]
[1727174701285,9.42,147.2,147.1,173.81384618]
[1727174701469,9.42,147.2,147.15,3.3979]
[1727174701673,3.3974,147.18,147.15,3.3979]
[1727174704875,3.3974,147.18,147.15,12.8179]
[1727174705074,2.7496,147.23,147.17,9.42]
[1727174705380,12.1696,147.23,147.19,9.42]
[1727174705581,2.7496,147.23,147.18,3.3971]
[1727174705976,2.7496,147.23,147.19,9.42]
[1727174706176,3.3966,147.22,147.19,9.42]
[1727174706384,2.7496,147.23,147.18,3.3971]
[1727174706583,2.7496,147.23,147.19,9.42]
[1727174707791,3.3966,147.22,147.19,9.42]
[1727174708385,2.7496,147.23,147.19,12.8171]
[1727174708892,3.3966,147.22,147.19,12.8171]
[1727174710089,1.4277,147.24,147.21,9.42]
[1727174710387,9.42,147.27,147.23,9.42]
[1727174710693,3.3959,147.25,147.23,9.42]
[1727174711084,9.42,147.27,147.23,9.42]
[1727174712386,3.3955,147.26,147.23,9.42]
[1727174712693,9.42,147.27,147.23,9.42]
[1727174713286,9.42,147.27,147.21,3.3965]
[1727174713287,3.3959,147.24,147.21,9.42]
[1727174713886,9.42,147.26,147.21,9.42]
[1727174713887,3.3962,147.23,147.21,9.42]
[1727174715490,3.3964,147.22,147.19,3.397]
[1727174715694,3.3964,147.22,147.2,9.42]
[1727174716891,3.3964,147.22,147.18,3.3971]
[1727174717089,3.3964,147.22,147.2,9.42]
[1727174717994,3.3966,147.21,147.2,9.42]
[1727174718196,9.42,147.24,147.11,81.54]
[1727174718489,3.397,147.2,147.18,9.42]
[1727174718685,9.42,147.24,147.11,81.54]
[1727174718888,24.667,147.31,147.11,81.54]
[1727174718889,9.42,147.22,147.18,9.42]
[1727174719090,3.3972,147.19,147.18,9.42]
[1727174720292,3.3974,147.18,147.11,81.54]
[1727174720496,3.3974,147.18,147.16,9.42]
[1727174720686,9.42,147.21,147.17,9.42]
[1727174720893,3.3972,147.19,147.17,9.42]
[1727174726297,9.42,147.19,147.1,92.25384618]
[1727174726603,9.42,147.19,147.14,9.42]
[1727174727102,3.3978,147.16,147.14,9.42]
[1727174727594,9.42,147.19,147.14,9.42]
[1727174728300,3.3979,147.16,147.14,9.42]
[1727174730595,3.3979,147.16,147.14,12.8182]
[1727174733306,3.398,147.15,147.13,3.3984]
[1727174733504,3.398,147.15,147.14,9.42]
[1727174735800,9.42,147.15,147.1,92.25384618]
[1727174736107,6.7933,147.21,147.02,311.56]
[1727174736108,9.42,147.14,147.02,311.56]
[1727174736310,12.80591103,147.14,147.09,9.42]
[1727174736511,3.38591103,147.14,147.09,9.42]
[1727174736705,3.3991,147.11,147.09,9.42]
[1727174737008,12.7725925,147.13,147.08,9.42]
[1727174737306,3.3991,147.11,147.08,12.8196]
[1727174737497,9.42,147.13,147.08,9.42]
[1727174737704,4.046,147.18,147.08,9.42]
[1727174737908,9.42,147.14,147.1,9.42]
[1727174738108,9.42,147.13,147.04,92.2918717]
[1727174738313,3.3989,147.12,147.08,12.8195]
[1727174738609,3.3989,147.12,147.1,9.42]
[1727174738808,3.3986,147.13,147.1,12.8192]
[1727174741811,9.42,147.13,147.04,92.2918717]
[1727174742003,12.1167,147.13,147.04,92.2918717]
[1727174742310,3.3991,147.11,147.08,12.8196]
[1727174742501,2.6967,147.13,147.1,9.42]
[1727174743511,6.0953,147.13,147.1,12.8191]
[1727174747714,12.1167,147.13,147.09,12.8193]
[1727174748414,3.3989,147.12,147.09,12.8193]
[1727174750213,3.3989,147.11,147.09,12.8193]
[1727174751617,3.3989,147.11,147.08,3.3995]
[1727174751915,3.3992,147.1,147.08,12.8195]
[1727174752213,3.3991,147.11,147.08,12.8195]
[1727174752716,3.3991,147.11,147.09,12.8194]
[1727174756018,3.3991,147.11,147.09,3.3994]
[1727174756420,3.3991,147.11,147.09,12.8194]
[1727174756918,3.3991,147.11,147.08,3.3995]
[1727174757317,3.399,147.11,147.08,3.3995]
[1727174759818,3.3992,147.1,147.08,3.3995]
[1727174761019,3.3992,147.1,147.04,92.2918717]
[1727174761222,3.3992,147.1,147.08,9.42]
[1727174762526,3.3992,147.1,147.08,12.8195]
[1727174762723,9.42,147.12,147.08,9.42]
[1727174763119,12.8188,147.12,147.1,3.3992]
[1727174763627,3.3988,147.12,147.1,3.3992]
[1727174763826,3.3988,147.12,147.09,12.8193]
[1727174765130,3.3988,147.12,147.09,3.3993]
[1727174766031,9.42,147.12,147.09,3.3993]
[1727174767131,4.0451,147.13,147.09,3.3993]
[1727174767335,2.6967,147.13,147.1,9.42]
[1727174767631,3.44181459,147.16,147.12,9.42]
[1727174768033,3.3981,147.15,147.12,12.8186]
[1727174768228,3.44181459,147.16,147.12,9.42]
[1727174768437,59.02822472,147.17,147.14,9.42]
[1727174768831,62.42592472,147.17,147.14,12.8181]
[1727174769434,62.42592472,147.17,147.14,3.3981]
[1727174771237,6.74620035,147.16,147.13,3.3984]
[1727174771438,3.3978,147.16,147.13,3.3984]
[1727174771736,3.3978,147.16,147.13,12.8184]
[1727174772033,59.02822472,147.17,147.14,3.3982]
[1727174772236,59.02822472,147.17,147.15,9.42]
[1727174773237,59.02822472,147.17,147.14,9.42]
[1727174773731,59.02822472,147.17,147.13,9.42]
[1727174773939,9.42,147.15,147.08,3.37832107]
[1727174774138,9.42,147.15,147.09,9.42]
[1727174774139,9.42,147.14,147.09,9.42]
[1727174774333,9.42,147.12,147.08,3.37832107]
[1727174774528,9.42,147.12,147.07,9.42]
[1727174774938,12.8188,147.12,147.09,3.3994]
[1727174775138,9.42,147.11,147.06,9.42]
[1727174775531,3.3988,147.12,147.09,3.3993]
[1727174777135,9.42,147.11,147.04,92.2918717]
[1727174777336,9.42,147.1,147.05,9.42]
[1727174777536,9.42,147.11,147.06,9.42]
[1727174778239,3.3993,147.1,147.07,3.3997]
[1727174780042,9.42,147.13,147.08,9.42]
[1727174780543,3.3988,147.12,147.09,3.3992]
[1727174782441,3.3986,147.13,147.1,3.3992]
[1727174782638,12.8186,147.13,147.1,3.3992]
[1727174784943,9.42,147.12,147.1,3.3992]
[1727174785343,12.8187,147.12,147.09,3.3993]
[1727174787748,12.8187,147.12,147.1,3.3992]
[1727174789251,12.8187,147.12,147.09,3.3993]
[1727174790756,9.42,147.1,147.08,3.3995]
[1727174793251,12.8192,147.1,147.08,3.3995]
[1727174793457,12.8192,147.1,147.07,3.3998]
[1727174795253,12.8192,147.1,147.08,3.3996]
[1727174798059,3.3988,147.12,147.09,3.3992]
[1727174798259,9.42,147.12,147.09,3.3992]
[1727174799759,3.399,147.11,147.09,3.3992]
[1727174800055,3.399,147.11,147.08,3.3995]
[1727174800863,12.8189,147.12,147.09,3.3994]
[1727174801267,9.42,147.12,147.1,3.3991]
[1727174801863,12.8188,147.12,147.09,3.3993]
[1727174807261,9.42,147.11,147.04,92.2918717]
[1727174807567,9.42,147.11,147.05,9.42]
[1727174808868,3.3992,147.1,147.08,3.3996]
[1727174809965,3.3994,147.09,147.07,3.3998]
[1727174810363,9.42,147.1,147.07,3.3998]
[1727174810869,12.8193,147.1,147.08,3.3996]
[1727174811169,9.42,147.1,147.04,92.2918717]
[1727174811366,9.42,147.1,147.05,9.42]
[1727174811565,9.42,147.1,147.07,3.3997]
[1727174812369,12.8193,147.1,147.08,3.3996]
[1727174812867,3.3993,147.1,147.08,3.3996]
[1727174814369,9.42,147.09,147.04,92.2918717]
[1727174814870,3.3997,147.08,147.05,3.4001]
[1727174815062,3.3997,147.08,147.04,92.2918717]
[1727174815264,3.3997,147.08,147.04,101.7118717]
[1727174815670,12.8195,147.09,147.06,3.4]
[1727174817374,12.8195,147.09,147.07,3.3999]
[1727174819377,12.8195,147.09,147.06,3.4]
[1727174822185,12.8195,147.09,147.07,3.3998]
[1727174822878,9.42,147.09,147.04,92.2918717]
[1727174823181,2.84,147.1,147.04,92.2918717]
[1727174823182,9.42,147.07,147.04,92.2918717]
[1727174823682,9.42,147.05,146.95,81.62]
[1727174823874,9.42,147.05,147.0,9.42]
[1727174824185,9.42,147.05,146.96,3.4218781]
[1727174824377,9.42,147.05,147.0,9.42]
[1727174824974,9.42,147.03,146.95,81.62]
[1727174825181,9.42,147.03,146.98,9.42]
[1727174825884,9.42,147.03,147.01,3.4011]
[1727174826379,12.8208,147.03,147.01,3.4011]
[1727174826580,9.42,147.02,146.99,3.4015]
[1727174827081,9.42,147.02,147.0,3.4014]
[1727174827281,9.42,147.02,146.97,9.42]
[1727174827672,3.46541691,147.07,146.91,173.93325257]
[1727174827673,9.42,147.01,146.91,173.93325257]
[1727174827872,1.3269,147.09,146.98,9.42]
[1727174828078,9.42,147.02,147.0,3.4014]
[1727174829076,9.42,147.01,147.0,3.4014]
[1727174829280,9.42,147.01,146.99,3.4016]
[1727174830481,9.42,147.01,147.0,3.4015]
[1727174831186,1.3269,147.09,147.01,3.4012]
[1727174831387,9.42,147.03,146.99,9.42]
[1727174831785,9.42,147.03,147.0,3.4014]
[1727174832180,9.42,147.03,146.99,9.42]
[1727174832988,9.42,147.02,146.98,9.42]
[1727174833388,9.42,147.02,147.0,3.4014]
[1727174833988,9.42,147.03,147.01,3.4012]
[1727174838284,12.8209,147.03,147.0,3.4013]
[1727174840691,12.8209,147.03,147.01,3.4012]
[1727174841386,12.8209,147.03,147.0,3.4014]
[1727174843085,9.42,147.01,147.0,3.4014]
[1727174843787,12.8213,147.01,146.94,9.42]
[1727174843992,9.42,146.99,146.94,9.42]
[1727174845893,9.42,146.99,146.98,3.4019]
[1727174855490,3.4014,147.01,146.94,9.42]
[1727174855693,2.673,147.03,146.99,9.42]
[1727174855891,12.80506568,147.05,146.99,9.42]
[1727174856090,3.4005,147.05,147.03,3.4007]
[1727174856292,12.8205,147.05,147.03,3.4007]
[1727174856491,12.8205,147.05,147.01,9.42]
[1727174856891,12.8205,147.05,147.02,3.4008]
[1727174860605,9.42,147.05,147.03,3.4008]
[1727174861002,9.42,147.05,147.01,9.42]
[1727174861803,9.42,147.05,147.03,3.4006]
[1727174867006,12.8204,147.05,147.03,3.4006]
[1727174870511,3.992,147.09,147.05,3.4003]
[1727174870704,3.992,147.09,147.03,9.42]
[1727174870705,9.42,147.08,147.03,9.42]
[1727174871207,12.8197,147.08,147.05,3.4002]
[1727174871507,9.42,147.07,147.05,3.4002]
[1727174871809,12.8199,147.07,147.04,3.4004]
[1727174872405,12.8199,147.07,147.02,9.42]
[1727174872610,12.8199,147.07,147.05,3.4003]
[1727174875308,12.8199,147.07,146.97,6.804]
[1727174875309,12.8201,147.06,147.01,9.42]
[1727174875515,9.42,147.04,147.0,9.42]
[1727174876014,9.42,147.04,147.03,3.4008]
[1727174876710,9.42,147.04,147.02,3.4009]
[1727174877415,9.42,147.04,146.97,10.18791399]
[1727174877614,9.42,147.04,147.0,9.42]
[1727174878822,9.42,147.04,147.03,3.4008]
[1727174880622,3.4008,147.03,147.0,9.42]
[1727174880825,9.42,147.03,146.98,9.42]
[1727174881045,9.42,147.02,146.98,9.42]
[1727174881226,9.42,147.02,147.0,3.4013]
[1727174883022,3.4006,147.04,146.99,9.42]
[1727174883319,3.992,147.09,147.03,9.42]
[1727174883625,3.4,147.07,147.04,3.4004]
[1727174884622,12.82,147.07,147.04,3.4004]
[1727174884926,3.4,147.07,147.04,3.4004]
[1727174885120,3.992,147.09,147.04,3.4004]
[1727174885121,13.412,147.09,147.04,9.42]
[1727174885322,2.6046,147.09,147.06,9.42]
[1727174885528,2.6046,147.09,147.07,3.3996]
[1727174886322,6.004,147.09,147.06,3.4]
[1727174887928,3.3996,147.08,147.06,3.4]
[1727174888226,12.0246,147.09,147.06,3.4]
[1727174889026,15.4241,147.09,147.06,3.4]
[1727174890024,6.0041,147.09,147.07,3.3998]
[1727174890226,2.6046,147.09,147.05,9.42]
[1727174890425,1.3177,147.12,147.08,9.42]
[1727174890625,3.399,147.11,147.08,3.3996]
[1727174890923,9.42,147.11,147.06,9.42]
[1727174891529,12.8191,147.11,147.07,3.3997]
[1727174891930,9.42,147.1,147.07,3.3997]
[1727174892119,3.3995,147.09,147.06,3.3999]
[1727174897327,12.8192,147.1,147.07,3.3997]